lending/lending_fUSD_20240703
["ID","MTS","AMOUNT","RATE_DAILY","PERIOD"]
[331033122,1720013503590,-500.0,0.00021917,4]
[331033123,1720013503599,-516.309194,0.00021917,2]
[331033124,1720013503608,-5906.86,0.00021917,4]
[331033125,1720013503618,-500.0,0.00021917,4]
[331033126,1720013503627,-516.309194,0.00021917,2]
[331033127,1720013503636,-5906.86,0.00021917,4]
[331033128,1720013503648,-500.0,0.00021917,4]
[331033129,1720013503657,-516.309194,0.00021917,2]
[331033130,1720013503667,-5906.86,0.00021917,4]
[331033131,1720013503676,-5907.00245714,0.00021917,4]
[331033132,1720013503685,-500.0,0.00021917,2]
[331033133,1720013503694,-500.0,0.00021917,4]
[331033134,1720013503704,-151.0,0.00021917,2]
[331033135,1720013503713,-500.0,0.00021917,2]
[331033136,1720013503722,-625.21149837,0.00021917,4]
[331033137,1720013503731,-151.0,0.00021917,2]
[331033138,1720013503741,-682.91,0.00021917,4]
[331033139,1720013503750,-576.24879427,0.00021917,2]
[331033140,1720013503759,-500.0,0.00021917,4]
[331033141,1720013503768,-500.0,0.00021917,4]
[331033142,1720013503777,-151.0,0.00021917,2]
[331033143,1720013503787,-500.0,0.00021917,4]
[331033144,1720013503797,-500.0,0.00021917,4]
[331033145,1720013503806,-511.73,0.00021917,4]
[331033146,1720013503815,-151.0,0.00021917,2]
[331033147,1720013503825,-151.0,0.00021917,2]
[331033148,1720013503835,-500.0,0.00021917,4]
[331033149,1720013503844,-500.0,0.00021917,4]
[331033150,1720013503854,-500.0,0.00021917,4]
[331033151,1720013503863,-682.91,0.00021917,4]
[331033152,1720013503872,-151.0,0.00021917,2]
[331033153,1720013503881,-511.73,0.00021917,4]
[331033154,1720013503891,-500.0,0.00021917,4]
[331033155,1720013503901,-500.0,0.00021917,4]
[331033156,1720013503910,-151.0,0.00021917,2]
[331033157,1720013503920,-276.281596,0.00021917,2]
[331033158,1720013503929,-500.0,0.00021917,4]
[331033159,1720013503938,-682.91,0.00021917,4]
[331033160,1720013503947,-511.73,0.00021917,4]
[331033161,1720013503957,-572.1,0.00021917,4]
[331033162,1720013503967,-151.0,0.00021917,2]
[331033163,1720013503978,-511.73,0.00021917,4]
[331033164,1720013503988,-500.0,0.00021917,4]
[331033165,1720013503997,-151.0,0.00021917,2]
[331033166,1720013504007,-511.73,0.00021917,4]
[331033167,1720013504017,-682.91,0.00021917,4]
[331033168,1720013504026,-258.713076,0.00021917,2]
[331033169,1720013504035,-511.73,0.00021917,4]
[331033170,1720013504045,-500.0,0.00021917,4]
[331033171,1720013504054,-682.91,0.00021917,4]
[331033172,1720013504063,-500.0,0.00021917,4]
[331033173,1720013504073,-511.73,0.00021917,4]
[331033174,1720013504082,-500.0,0.00021917,4]
[331033175,1720013504091,-500.0,0.00021917,4]
[331033176,1720013504101,-500.0,0.00021917,4]
[331033177,1720013504111,-504.9136681,0.00021917,4]
[331033178,1720013504125,-6.8163319,0.00021917,4]
[331033179,1720013504134,-525.85254405,0.00021917,4]
[331033180,1720013504144,-500.0,0.00021917,4]
[331033181,1720013504154,-511.73,0.00021917,4]
[331033182,1720013504163,-500.0,0.00021917,4]
[331033183,1720013504173,-500.0,0.00021917,4]
[331033184,1720013504182,-511.73,0.00021917,4]
[331033185,1720013504191,-500.0,0.00021917,4]
[331033186,1720013504200,-500.0,0.00021917,4]
[331033187,1720013504210,-511.73,0.00021917,4]
[331033188,1720013504219,-500.0,0.00021917,4]
[331033189,1720013504228,-500.0,0.00021917,4]
[331033190,1720013504237,-682.91,0.00021917,4]
[331033191,1720013504246,-500.0,0.00021917,4]
[331033192,1720013504255,-500.0,0.00021917,4]
[331033193,1720013504265,-511.73,0.00021917,4]
[331033194,1720013504274,-500.0,0.00021917,4]
[331033195,1720013504283,-500.0,0.00021917,4]
[331033196,1720013504293,-292.45,0.00021917,4]
[331033197,1720013504302,-500.0,0.00021917,4]
[331033198,1720013504311,-511.73,0.00021917,4]
[331033199,1720013504320,-500.0,0.00021917,4]
[331033200,1720013504329,-682.91,0.00021917,4]
[331033201,1720013504338,-500.0,0.00021917,4]
[331033202,1720013504349,-511.73,0.00021917,4]
[331033203,1720013504360,-500.0,0.00021917,4]
[331033204,1720013504369,-500.0,0.00021917,4]
[331033205,1720013504378,-500.0,0.00021917,4]
[331033206,1720013504389,-500.0,0.00021917,4]
[331033207,1720013504399,-511.73,0.00021917,4]
[331033208,1720013504408,-682.91,0.00021917,4]
[331033209,1720013504417,-500.0,0.00021917,4]
[331033210,1720013504426,-500.0,0.00021917,4]
[331033211,1720013504437,-511.73,0.00021917,4]
[331033212,1720013504448,-500.0,0.00021917,4]
[331033213,1720013504457,-500.0,0.00021917,2]
[331033214,1720013504466,-682.91,0.00021917,4]
[331033215,1720013504476,-377.03,0.00021917,4]
[331033216,1720013504485,-511.73,0.00021917,4]
[331033217,1720013504494,-500.0,0.00021917,2]
[331033218,1720013504504,-500.0,0.00021917,4]
[331033219,1720013504514,-511.73,0.00021917,4]
[331033220,1720013504523,-500.0,0.00021917,4]
[331033221,1720013504532,-500.0,0.00021917,4]
[331033222,1720013504541,-511.73,0.00021917,4]
[331033223,1720013504550,-500.0,0.00021917,2]
[331033224,1720013504561,-511.73,0.00021917,4]
[331033225,1720013504570,-682.91,0.00021917,4]
[331033226,1720013504580,-500.0,0.00021917,4]
[331033227,1720013504589,-600.81398087,0.00021917,2]
[331033228,1720013504598,-500.0,0.00021917,4]
[331033229,1720013504607,-511.73,0.00021917,4]
[331033230,1720013504616,-560.10875116,0.00021917,4]
[331033231,1720013504626,-511.73,0.00021917,4]
[331033232,1720013504635,-955.008828,0.00021917,2]
[331033233,1720013504644,-511.73,0.00021917,4]
[331033234,1720013504656,-500.0,0.00021917,4]
[331033235,1720013504665,-511.75,0.00021917,4]
[331033236,1720013504674,-955.008828,0.00021917,2]
[331033237,1720013504684,-955.008828,0.00021917,2]
[331033238,1720013504693,-499.02,0.00021917,4]
[331033239,1720013504702,-682.91,0.00021917,4]
[331033240,1720013504711,-500.0,0.00021917,4]
[331033241,1720013504720,-500.0,0.00021917,4]
[331033242,1720013504730,-500.0,0.00021917,4]
[331033243,1720013504739,-500.0,0.00021917,4]
[331033244,1720013504747,-500.0,0.00021917,4]
[331033245,1720013504756,-500.0,0.00021917,4]
[331033246,1720013504766,-500.0,0.00021917,4]
[331033247,1720013504775,-500.0,0.00021917,4]
[331033248,1720013504784,-682.91,0.00021917,4]
[331033249,1720013504793,-605.59,0.00021917,4]
[331033250,1720013504803,-955.008828,0.00021917,2]
[331033251,1720013504812,-500.0,0.00021917,4]
[331033252,1720013504823,-500.0,0.00021917,4]
[331033253,1720013504833,-500.0,0.00021917,4]
[331033254,1720013504843,-500.0,0.00021917,4]
[331033255,1720013504854,-15743.78,0.00021917,4]
[331033256,1720013504864,-955.008828,0.00021917,2]
[331033257,1720013504873,-500.0,0.00021917,4]
[331033258,1720013504882,-500.0,0.00021917,4]
[331033259,1720013504891,-682.91,0.00021917,4]
[331033260,1720013504903,-15743.78,0.00021917,4]
[331033261,1720013504912,-500.0,0.00021917,4]
[331033262,1720013504926,-500.0,0.00021917,4]
[331033263,1720013504936,-500.0,0.00021917,2]
[331033264,1720013504946,-682.91,0.00021917,4]
[331033265,1720013504955,-15743.78,0.00021917,4]
[331033266,1720013504966,-500.0,0.00021917,4]
[331033267,1720013504976,-500.0,0.00021917,4]
[331033268,1720013504987,-955.008828,0.00021917,2]
[331033269,1720013504997,-500.0,0.00021917,4]
[331033270,1720013505007,-500.0,0.00021917,4]
[331033271,1720013505017,-500.0,0.00021917,2]
[331033272,1720013505027,-500.0,0.00021917,4]
[331033273,1720013505036,-15743.78,0.00021917,4]
[331033274,1720013505046,-955.008828,0.00021917,2]
[331033275,1720013505055,-500.0,0.00021917,4]
[331033276,1720013505065,-500.0,0.00021917,4]
[331033277,1720013505074,-495.32316509,0.00021917,2]
[331033278,1720013505083,-15743.78,0.00021917,4]
[331033279,1720013505092,-955.008828,0.00021917,2]
[331033280,1720013505102,-682.91,0.00021917,4]
[331033281,1720013505111,-500.0,0.00021917,4]
[331033282,1720013505120,-500.0,0.00021917,4]
[331033283,1720013505130,-15743.78,0.00021917,4]
[331033284,1720013505139,-500.0,0.00021917,4]
[331033285,1720013505149,-501.16,0.00021917,4]
[331033286,1720013505159,-500.0,0.00021917,4]
[331033287,1720013505168,-500.0,0.00021917,4]
[331033288,1720013505177,-500.0,0.00021917,4]
[331033289,1720013505186,-500.0,0.00021917,4]
[331033290,1720013505195,-500.0,0.00021917,4]
[331033291,1720013505204,-500.0,0.00021917,4]
[331033292,1720013505213,-15743.78,0.00021917,4]
[331033293,1720013505222,-682.91,0.00021917,4]
[331033294,1720013505231,-500.0,0.00021917,4]
[331033295,1720013505240,-500.0,0.00021917,4]
[331033296,1720013505249,-197.55,0.00021917,4]
[331033297,1720013505258,-500.0,0.00021917,4]
[331033298,1720013505267,-15743.78,0.00021917,4]
[331033299,1720013505277,-955.008828,0.00021917,2]
[331033300,1720013505286,-15743.78,0.00021917,4]
[331033301,1720013505295,-500.0,0.00021917,4]
[331033302,1720013505304,-955.008828,0.00021917,2]
[331033303,1720013505314,-955.008828,0.00021917,2]
[331033304,1720013505323,-682.91,0.00021917,4]
[331033305,1720013505332,-955.008828,0.00021917,2]
[331033306,1720013505344,-955.008828,0.00021917,2]
[331033307,1720013505355,-15743.78,0.00021917,4]
[331033308,1720013505364,-500.0,0.00021917,4]
[331033309,1720013505373,-955.008828,0.00021917,2]
[331033310,1720013505384,-15743.78,0.00021917,4]
[331033311,1720013505393,-682.91,0.00021917,4]
[331033312,1720013505405,-500.0,0.00021917,4]
[331033313,1720013505414,-15743.78,0.00021917,4]
[331033314,1720013505425,-955.008828,0.00021917,2]
[331033315,1720013505435,-500.0,0.00021917,4]
[331033316,1720013505444,-15743.78,0.00021917,4]
[331033317,1720013505453,-500.0,0.00021917,4]
[331033318,1720013505462,-683.11,0.00021917,4]
[331033319,1720013505472,-15743.78,0.00021917,4]
[331033320,1720013505481,-500.0,0.00021917,4]
[331033321,1720013505490,-955.008828,0.00021917,2]
[331033322,1720013505499,-15743.78,0.00021917,4]
[331033323,1720013505509,-331.01,0.00021917,4]
[331033324,1720013505518,-500.0,0.00021917,4]
[331033325,1720013505528,-15743.78,0.00021917,4]
[331033326,1720013505537,-15743.78,0.00021917,4]
[331033327,1720013505546,-500.0,0.00021917,4]
[331033328,1720013505554,-500.0,0.00021917,4]
[331033329,1720013505563,-15743.78,0.00021917,4]
[331033330,1720013505572,-15743.78,0.00021917,4]
[331033331,1720013505582,-15743.78,0.00021917,4]
[331033332,1720013505591,-15743.78,0.00021917,4]
[331033333,1720013505601,-15743.78,0.00021917,4]
[331033334,1720013505610,-15743.78,0.00021917,4]
[331033335,1720013505619,-500.0,0.00021917,4]
[331033336,1720013505629,-15743.8661,0.00021917,4]
[331033337,1720013505638,-500.0,0.00021917,4]
[331033338,1720013505649,-177.3,0.00021917,4]
[331033339,1720013505659,-150.0,0.00021917,4]
[331033340,1720013505669,-150.0,0.00021917,4]
[331033341,1720013505678,-150.0,0.00021917,4]
[331033342,1720013505688,-150.0,0.00021917,4]
[331033343,1720013505697,-109961.25028781,0.00021918,2]
[331033344,1720013505735,-1014.27409899,0.00021479,2]
[331033345,1720013505744,-756.14218042,0.00021918,2]
[331033346,1720013505756,-10364.24614622,0.00021918,2]
[331033347,1720013505775,-6019.09999999,0.00021918,2]
[331033348,1720013505786,-6639.26138556,0.00021918,2]
[331033349,1720013505796,-114782.0,0.00021918,2]
[331033350,1720013505805,-1683.25,0.00021918,2]
[331033351,1720013505815,-29172.0,0.00021918,2]
[331033352,1720013505824,-577.0,0.00021918,2]
[331033353,1720013505834,-5878.0,0.00021918,2]
[331033354,1720013505843,-262.464879,0.00021918,2]
[331033355,1720013505853,-262.464879,0.00021918,2]
[331033356,1720013505863,-262.464879,0.00021918,2]
[331033357,1720013505873,-262.464879,0.00021918,2]
[331033358,1720013505883,-262.464879,0.00021918,2]
[331033359,1720013505893,-262.464879,0.00021918,2]
[331033360,1720013505907,-262.464879,0.00021918,2]
[331033361,1720013505917,-262.464879,0.00021918,2]
[331033362,1720013505926,-262.464879,0.00021918,2]
[331033363,1720013505936,-262.464879,0.00021918,2]
[331033364,1720013505946,-262.464879,0.00021918,2]
[331033365,1720013505955,-262.464879,0.00021918,2]
[331033366,1720013505966,-262.464879,0.00021918,2]
[331033367,1720013505976,-262.464879,0.00021918,2]
[331033368,1720013505986,-262.464879,0.00021918,2]
[331033369,1720013505996,-262.464879,0.00021918,2]
[331033370,1720013506005,-262.464879,0.00021918,2]
[331033371,1720013506014,-262.464879,0.00021918,2]
[331033372,1720013506024,-150.0,0.00021918,2]
[331033373,1720013506033,-38331.0,0.00021918,2]
[331033374,1720013506042,-8132.0,0.00021918,2]
[331033375,1720013506051,-249.68,0.00021918,2]
[331033376,1720013506060,-156.76127,0.00021918,2]
[331033377,1720013506070,-504.492276,0.00021918,7]
[331033378,1720013506079,-504.492276,0.00021918,7]
[331033379,1720013506088,-151.0,0.00021918,7]
[331033380,1720013506097,-418.086772,0.00021918,7]
[331033381,1720013506107,-418.086772,0.00021918,7]
[331033382,1720013506115,-376.137205,0.00021918,7]
[331033383,1720013506125,-151.0,0.00021918,7]
[331033384,1720013506134,-376.137205,0.00021918,7]
[331033385,1720013506270,-282.612808,0.00021918,7]
[331033386,1720013506295,-282.612808,0.00021918,7]
[331033387,1720013506304,-151.0,0.00021918,3]
[331033388,1720013506314,-2878.255898,0.00021918,7]
[331033389,1720013506323,-2878.255898,0.00021918,7]
[331033390,1720013506333,-151.0,0.00021918,7]
[331033391,1720013506344,-516.309194,0.00021918,7]
[331033392,1720013506354,-200.24776,0.00021918,7]
[331033393,1720013506363,-516.309194,0.00021918,7]
[331033394,1720013506373,-955.008828,0.00021918,7]
[331033395,1720013506382,-955.008828,0.00021918,7]
[331033396,1720013506392,-704.14482965,0.0002192,2]
[331033397,1720013506405,-367.38365998,0.0002192,2]
[331033398,1720013506414,-1466.2615517,0.0002192,2]
[331033399,1720013506425,-1444.4555464,0.0002192,2]
[331033400,1720013506437,-500.0,0.0002192,2]
[331033401,1720013506447,-500.0,0.0002192,2]
[331033402,1720013506456,-500.0,0.0002192,2]
[331033403,1720013506465,-500.0,0.0002192,2]
[331033404,1720013506473,-500.0,0.0002192,2]
[331033405,1720013506482,-500.0,0.0002192,2]
[331033406,1720013506491,-500.0,0.0002192,2]
[331033407,1720013506500,-500.0,0.0002192,2]
[331033408,1720013506510,-500.0,0.0002192,2]
[331033409,1720013506519,-500.0,0.0002192,2]
[331033410,1720013506528,-500.0,0.0002192,2]
[331033411,1720013506537,-500.0,0.0002192,2]
[331033412,1720013506546,-500.0,0.0002192,2]
[331033413,1720013506556,-500.0,0.0002192,2]
[331033414,1720013506565,-500.0,0.0002192,2]
[331033415,1720013506574,-500.0,0.0002192,2]
[331033416,1720013506585,-500.0,0.0002192,2]
[331033417,1720013506594,-500.0,0.0002192,2]
[331033418,1720013506604,-500.0,0.0002192,2]
[331033419,1720013506613,-500.0,0.0002192,2]
[331033420,1720013506622,-500.0,0.0002192,2]
[331033421,1720013506631,-151.0,0.0002192,7]
[331033422,1720013506640,-151.0,0.0002192,7]
[331033423,1720013506650,-151.0,0.0002192,7]
[331033424,1720013506660,-150.0,0.00021953,4]
[331033425,1720013506669,-477.223816,0.00021967,7]
[331033426,1720013506678,-477.223818,0.00021967,7]
[331033427,1720013506688,-262.464879,0.00021967,7]
[331033428,1720013506697,-262.464871,0.00021967,7]
[331033429,1720013506707,-255.36423436,0.00021973,5]
[331033430,1720013506716,-300.0,0.00021983,2]
[331033431,1720013506726,-2100.0,0.00021983,2]
[331033432,1720013506736,-150.0,0.00021988,4]
[331033433,1720013506746,-536.0948718,0.00021989,20]
[331033434,1720013506755,-150.5,0.0002199,30]
[331033435,1720013506765,-152.4,0.00022,4]
[331033436,1720013506774,-500.0,0.00022,2]
[331033437,1720013506784,-793.07193784,0.00022,2]
[331033438,1720013506794,-159.62095419,0.00022,2]
[331033439,1720013506803,-20084.0,0.00022,8]
[331033440,1720013506812,-54087.84059249,0.00022,5]
[331033441,1720013506825,-2176.24959874,0.00022,5]
[331033442,1720013506836,-343.33,0.00022,5]
[331033443,1720013506848,-4330.74976708,0.00022,5]
[331033444,1720013506859,-15098.19227282,0.00022,5]
[331033445,1720013506870,-31348.53232065,0.00022,5]
[331033446,1720013506881,-379.44033928,0.00022,5]
[331033447,1720013506893,-18705.14663532,0.00022,5]
[331033448,1720013507071,-2635.11996308,0.00022,5]
[331033449,1720013507082,-16251.50482303,0.00022,5]
[331033450,1720013560155,-150.0,0.00026493,120]
[331033451,1720013560178,-50.26464813,0.00026628,120]
[331033452,1720013560287,-99.73535187,0.00026628,120]
[331033453,1720013560310,-200.26464813,0.0002736,120]
[331033454,1720013560336,-1.63237145,0.00027582,120]
[331033455,1720013560451,-148.36762855,0.00027582,120]
[331033456,1720013560476,-225.76560238,0.00028,120]
[331033457,1720013560591,-774.23439762,0.00028,120]
[331033458,1720013560614,-301.63237145,0.00028297,120]
[331033459,1720013560637,-150.0,0.00028383,120]
[331033460,1720013560660,-150.0,0.0002846,120]
[331033461,1720013560684,-1459.70298042,0.00028465,120]
[331033462,1720013571002,18232.80883488,0.00011199,2]
[331033463,1720013606394,4458.61712229,0.00011199,2]
[331033464,1720013612299,409.22,0.00010637,2]
[331033465,1720013612344,4713.24960871,0.00011199,2]
[331033466,1720013630008,1367.01150639,0.00011199,2]
[331033467,1720013640213,9969.2288201,0.00011199,2]
[331033468,1720013644626,6224.34665121,0.00011199,2]
[331033469,1720013644906,11012.68621035,0.00011199,2]
[331033471,1720013648593,14050.62109455,0.00011199,2]
[331033472,1720013648628,10525.28891032,0.00011199,2]
[331033473,1720013669061,2178.62382473,6.94e-05,2]
[331033474,1720013699868,2377.36233495,0.00011199,2]
[331033475,1720013716830,1270.71740907,0.00011199,2]
[331033476,1720013765150,2375.18638309,0.00011199,2]
[331033478,1720013785894,1337.5629768,0.00011199,2]
[331033479,1720013786138,1345.3223563,0.00011199,2]
[331033480,1720013787615,722.36239335,0.00011199,2]
[331033482,1720013815962,626.98777792,0.00011199,2]
[331033483,1720013820577,549803.63898213,0.000225,120]
[331033484,1720013822939,-155.67697001,0.00012302,2]
[331033485,1720013822962,-524.2953016,0.00012302,2]
[331033486,1720013822984,-217.93104005,0.00012302,2]
[331033487,1720013823004,-201.70863628,0.00012302,2]
[331033488,1720013823025,-196.20443442,0.00012302,2]
[331033489,1720013823049,-644.10445194,0.0001251,2]
[331033490,1720013823070,-200.0,0.00012555,2]
[331033491,1720013823094,-409.22,0.00012901,2]
[331033492,1720013823117,-3507.39095033,0.00013,2]
[331033493,1720013823139,-300.0,0.00013573,2]
[331033494,1720013823169,-2136.85044008,0.00013574,2]
[331033495,1720013823190,-1365.34648645,0.00013574,2]
[331033496,1720013823211,-1103.94108391,0.00013574,2]
[331033497,1720013823232,-303.48971614,0.00013574,2]
[331033498,1720013823253,-175.04,0.00013895,2]
[331033499,1720013823274,-150.0,0.00013999,2]
[331033500,1720013823300,-459892.80048879,0.00014,2]
[331033503,1720014003520,171.55977749,5e-05,2]
[331033504,1720014050483,825.42412283,5e-05,2]
[331033505,1720014069589,290.54620149,6.061e-05,2]
[331033506,1720014114593,430.82238472,7.347e-05,2]
[331033507,1720014126216,155.0,7.347e-05,2]
[331033508,1720014139179,3086.02451693,7.347e-05,2]
[331033509,1720014147431,4323.87381609,7.347e-05,2]
[331033510,1720014156865,25271.36227544,0.0001,2]
[331033511,1720014163445,10989.92987277,0.0001,2]
[331033512,1720014185031,16796.02717989,8.905e-05,2]
[331033513,1720014207034,200.6439511,9.751e-05,2]
[331033514,1720014250427,1069.94736295,0.00010794,2]
[331033515,1720014254780,17962.85524867,0.00010794,2]
[331033516,1720014289003,626.98777792,0.00011199,2]
[331033519,1720014350845,660.50574852,0.00011199,2]
[331033520,1720014374773,795.39303922,0.00011199,2]
[331033606,1720014440364,3996.0,0.00011199,2]
[331033607,1720014440389,20391.03752901,0.00011199,2]
[331033610,1720014457539,150.13996471,0.00011143,2]
[331033612,1720014530956,10989.92987277,0.00011199,2]
[331033614,1720014596965,174.15,0.00010646,2]
[331033615,1720014604384,1502.93537631,0.00025999,120]
[331033631,1720014632486,-0.02426412,0.00012314,2]
[331033632,1720014632498,-626.9635138,0.00012314,2]
[331033633,1720014632507,-368.29,0.00012442,2]
[331033634,1720014632516,-544.44616769,0.00013128,2]
[331033635,1720014632526,-475.49616812,0.00013128,2]
[331033636,1720014632535,-162.33447912,0.00013128,2]
[331033637,1720014632545,-205.32220319,0.00013472,2]
[331033638,1720014632555,-500.0,0.000135,4]
[331033639,1720014632564,-3175.39233903,0.00013574,2]
[331033651,1720014638316,-626.98777792,0.00012302,2]
[331033652,1720014638327,-460.9395,0.00012342,2]
[331033653,1720014638338,-7814.53753374,0.00013574,2]
[331033654,1720014638348,-2557.46560469,0.00013574,2]
[331033655,1720014638357,-155.0,0.00013574,2]
[331033656,1720014638368,-1100.0,0.000136,4]
[331033657,1720014638378,-2842.74819056,0.00013642,2]
[331033658,1720014638388,-238.55,0.00013699,2]
[331033659,1720014638399,-300.0,0.00013699,2]
[331033660,1720014638410,-1600.0,0.000137,5]
[331033661,1720014638420,-2200.0,0.000138,5]
[331033662,1720014638429,-150.99,0.000138,2]
[331033663,1720014638439,-34768.17131818,0.000139,2]
[331033664,1720014638449,-167.18443854,0.000139,2]
[331033665,1720014638459,-2700.0,0.000139,5]
[331033666,1720014638468,-150.0,0.00013973,2]
[331033667,1720014638478,-150.0,0.00013989,2]
[331033668,1720014638487,-499.99,0.0001399,2]
[331033669,1720014638497,-221.12276999,0.0001399,2]
[331033670,1720014638508,-221.12276999,0.0001399,2]
[331033671,1720014638530,-177.7859223,0.00013994,2]
[331033672,1720014638541,-325.92062356,0.00013994,2]
[331033673,1720014638552,-13455.96720021,0.00013994,2]
[331033674,1720014638563,-6112.46898519,0.00013994,2]
[331033675,1720014638574,-1947.49945708,0.00013999,2]
[331033677,1720014638584,-1691908.17461823,0.00014,2]
[331033679,1720014638598,-248893.38729182,0.00014,2]
[331033680,1720014638610,-2799.91699358,0.00014,2]
[331033681,1720014638623,-261851.03738716,0.00014,2]
[331033682,1720014638635,-473.66,0.00014,2]
[331033683,1720014638648,-1285.23863599,0.00014,2]
[331033684,1720014638660,-3322.41185781,0.00014,2]
[331033685,1720014638672,-857.22721754,0.00014,2]
[331033689,1720014640478,-611.92,0.00014,2]
[331033690,1720014640491,-718.2466,0.00014,2]
[331033691,1720014640503,-31426.71269181,0.00014,2]
[331033692,1720014640515,-256.06708569,0.00014,2]
[331033693,1720014640753,-489599.02076126,0.00014,2]
[331033711,1720014644461,-308.48528023,0.00013994,2]
[331033713,1720014644470,-3918.33865367,0.00014,2]
[331033715,1720014644481,-471.99958269,0.00014,2]
[331033718,1720014644493,-2121.65651223,0.00014,2]
[331033720,1720014644504,-600.81250038,0.00014,2]
[331033726,1720014644681,-8065.38207199,0.00014,2]
[331033727,1720014644693,-565610.86240888,0.00014,2]
[331033728,1720014644709,-400.20219731,0.00014,2]
[331033729,1720014644970,-173234.92474922,0.00014,2]
[331033730,1720014644981,-131091.03701693,0.00014,2]
[331033731,1720014646041,-496.99066425,0.00014,2]
[331033735,1720014646417,-295.21458624,0.00014,2]
[331033736,1720014646429,-1941.56,0.00014,2]
[331033737,1720014646441,-2026.77504163,0.00014,2]
[331033738,1720014646676,-550.18428788,0.00014,2]
[331033739,1720014646688,-500.0,0.00014,2]
[331033784,1720014841530,-476.58,0.00013254,2]
[331033785,1720014841559,-326.76011987,0.000139,2]
[331033786,1720014841578,-476.58,0.00014,2]
[331033787,1720014841589,-326.76011987,0.00014,2]
[331033788,1720014841601,-178393.31976026,0.00014,2]
[331033805,1720015520879,518.04242089,0.00011199,2]
[331033827,1720015644914,5451.0,0.00025,60]
[331033828,1720015664447,1918.79561687,0.00011199,2]
[331033830,1720015674341,5890.51578816,0.00011199,2]
[331033831,1720015697284,174.15,0.00010958,2]
[331033832,1720015758803,3020.97798527,0.00011199,2]
[331033833,1720015764222,-214.19497719,0.00011645,2]
[331033834,1720015774184,4908.7631568,0.00010958,2]
[331033835,1720015789186,4908.7631568,0.00010958,2]
[331033837,1720015832485,-265.59502281,0.00011645,2]
[331033840,1720015832496,-1054.64921062,0.00012302,2]
[331033843,1720015832505,-250.0,0.00013482,2]
[331033845,1720015832514,-300.0,0.00013622,2]
[331033848,1720015832523,-2761.09874153,0.00013623,2]
[331033852,1720015832537,-792.5901174,0.00013623,2]
[331033854,1720015832549,-825.99999941,0.00013623,2]
[331033856,1720015832561,-1974.8225,0.00013623,2]
[331033858,1720015832571,-472.53583505,0.00013623,2]
[331033860,1720015832582,-1199.84162846,0.00013623,2]
[331033866,1720015832821,-4259.61070056,0.00013623,2]
[331033868,1720015832834,-291.826501,0.00013623,2]
[331033869,1720015832845,-7915.5653809,0.00013623,2]
[331033870,1720015832856,-491.40445475,0.00013623,2]
[331033871,1720015832867,-463.05,0.00013623,2]
[331033872,1720015832878,-609.67999998,0.00013623,2]
[331033873,1720015832890,-1831.97414096,0.00013623,2]
[331033874,1720015832899,-1000.0,0.00013648,2]
[331033875,1720015832908,-224.27,0.00013699,2]
[331033876,1720015832919,-385.42000634,0.00013753,2]
[331033877,1720015832928,-250.0,0.00013843,2]
[331033878,1720015832937,-179.8251013,0.00013849,2]
[331033879,1720015832947,-155.0,0.00013849,2]
[331033880,1720015832955,-963.3108,0.0001386,2]
[331033881,1720015832964,-499.99,0.00013889,2]